fUSD/lending_fUSD_20251220
["ID","MTS","AMOUNT","RATE_DAILY","PERIOD"]
[399233812,1766193040745,-500.0,0.000163,2]
[399233813,1766193040754,-451.84220836,0.000163,2]
[399233814,1766193040764,-177.09914604,0.000163,2]
[399233815,1766193040773,-500.0,0.000163,2]
[399233816,1766193040782,-500.0,0.000163,2]
[399233817,1766193040792,-500.0,0.000163,2]
[399233818,1766193040801,-500.0,0.000163,2]
[399233819,1766193040811,-500.0,0.000163,2]
[399233820,1766193040820,-500.0,0.000163,2]
[399233821,1766193040829,-426.23716195,0.000163,2]
[399233822,1766193040839,-500.0,0.000163,2]
[399233823,1766193040848,-500.0,0.000163,2]
[399233824,1766193040857,-334.43808915,0.000163,2]
[399233825,1766193040867,-500.0,0.000163,2]
[399233826,1766193040876,-500.0,0.000163,2]
[399233827,1766193040886,-500.0,0.000163,2]
[399233828,1766193040895,-162.31867458,0.000163,2]
[399233829,1766193040904,-500.0,0.000163,2]
[399233830,1766193040913,-500.0,0.000163,2]
[399233831,1766193040923,-500.0,0.000163,2]
[399233832,1766193040932,-516.25277369,0.000163,2]
[399233833,1766193040941,-500.0,0.000163,2]
[399233834,1766193040950,-500.0,0.000163,2]
[399233835,1766193040959,-500.0,0.000163,2]
[399233836,1766193040969,-522.8425268,0.000163,2]
[399233837,1766193040977,-166.85768029,0.000163,2]
[399233838,1766193040987,-500.0,0.000163,2]
[399233839,1766193040996,-500.0,0.000163,2]
[399233840,1766193041006,-500.0,0.000163,2]
[399233841,1766193041015,-161.02777074,0.000163,2]
[399233842,1766193041024,-542.76869497,0.000163,2]
[399233843,1766193041035,-500.0,0.000163,2]
[399233844,1766193041045,-159.38113673,0.000163,2]
[399233845,1766193041054,-500.0,0.000163,2]
[399233846,1766193041064,-468.39914769,0.000163,2]
[399233847,1766193041074,-168.51399609,0.000163,2]
[399233848,1766193041084,-500.0,0.000163,2]
[399233849,1766193041094,-500.0,0.000163,2]
[399233850,1766193041105,-500.0,0.000163,2]
[399233851,1766193041117,-500.0,0.000163,2]
[399233852,1766193041128,-576.83817064,0.000163,2]
[399233853,1766193041138,-500.0,0.000163,2]
[399233854,1766193041147,-529.81919034,0.000163,2]
[399233855,1766193041161,-500.0,0.000163,2]
[399233856,1766193041171,-500.0,0.000163,2]
[399233857,1766193041183,-344.53874952,0.000163,2]
[399233858,1766193041193,-220.19602395,0.000163,2]
[399233859,1766193041203,-500.0,0.000163,2]
[399233860,1766193041213,-500.0,0.000163,2]
[399233861,1766193041222,-500.0,0.000163,2]
[399233862,1766193041232,-500.0,0.000163,2]
[399233863,1766193041243,-500.0,0.000163,2]
[399233864,1766193041253,-2016.28938285,0.00016322,2]
[399233865,1766193041263,-228.0,0.000164,2]
[399233866,1766193041272,-319.0,0.000164,2]
[399233867,1766193041282,-182.0,0.000164,2]
[399233868,1766193041291,-183.36639169,0.000164,2]
[399233869,1766193041300,-151.0,0.00016435,2]
[399233870,1766193041310,-500.0,0.00016438,2]
[399233871,1766193041320,-500.0,0.00016438,2]
[399233872,1766193041330,-500.0,0.00016438,2]
[399233873,1766193041340,-500.0,0.00016438,2]
[399233874,1766193041349,-500.0,0.00016438,2]
[399233875,1766193041358,-500.0,0.00016438,2]
[399233876,1766193041367,-500.0,0.00016438,2]
[399233877,1766193041376,-500.0,0.00016438,2]
[399233878,1766193041385,-500.0,0.00016438,2]
[399233879,1766193041394,-500.0,0.00016438,2]
[399233880,1766193041403,-500.0,0.00016438,2]
[399233881,1766193041412,-500.0,0.00016438,2]
[399233882,1766193041422,-500.0,0.00016438,2]
[399233883,1766193041432,-500.0,0.00016438,2]
[399233884,1766193041442,-500.0,0.00016438,2]
[399233885,1766193041451,-500.0,0.00016438,2]
[399233886,1766193041461,-500.0,0.00016438,2]
[399233887,1766193041471,-500.0,0.00016438,2]
[399233888,1766193041480,-500.0,0.00016438,2]
[399233889,1766193041491,-512.64789609,0.00016438,2]
[399233890,1766193041500,-500.0,0.00016438,2]
[399233891,1766193041510,-500.0,0.00016438,2]
[399233892,1766193041519,-500.0,0.00016438,2]
[399233893,1766193041528,-500.0,0.00016438,2]
[399233894,1766193041538,-500.0,0.00016438,2]
[399233895,1766193041546,-500.0,0.00016438,2]
[399233896,1766193041556,-500.0,0.00016438,2]
[399233897,1766193041567,-500.0,0.00016438,2]
[399233898,1766193041577,-500.0,0.00016438,2]
[399233899,1766193041586,-500.0,0.00016438,2]
[399233900,1766193041594,-500.0,0.00016438,2]
[399233901,1766193041605,-500.0,0.00016438,2]
[399233902,1766193041615,-500.0,0.00016438,2]
[399233903,1766193041625,-500.0,0.00016438,2]
[399233904,1766193041635,-500.0,0.00016438,2]
[399233905,1766193041646,-500.0,0.00016438,2]
[399233906,1766193041655,-500.0,0.00016438,2]
[399233907,1766193041665,-500.0,0.00016438,2]
[399233908,1766193041674,-500.0,0.00016438,2]
[399233909,1766193041683,-500.0,0.00016438,2]
[399233910,1766193041692,-500.0,0.00016438,2]
[399233911,1766193041701,-500.0,0.00016438,2]
[399233912,1766193041710,-500.0,0.00016438,2]
[399233913,1766193041719,-500.0,0.00016438,2]
[399233914,1766193041731,-500.0,0.00016438,2]
[399233915,1766193041739,-500.0,0.00016438,2]
[399233916,1766193041748,-500.0,0.00016438,2]
[399233917,1766193041757,-500.0,0.00016438,2]
[399233918,1766193041766,-500.0,0.00016438,2]
[399233919,1766193041775,-500.0,0.00016438,2]
[399233920,1766193041784,-500.0,0.00016438,2]
[399233921,1766193041793,-500.0,0.00016438,2]
[399233922,1766193041803,-500.0,0.00016438,2]
[399233923,1766193041814,-500.0,0.00016438,2]
[399233924,1766193041823,-3000.0,0.00016438,2]
[399233925,1766193041833,-12242.72,0.00016438,2]
[399233926,1766193041842,-800.0,0.00016438,2]
[399233927,1766193041851,-164.38,0.0001644,2]
[399233928,1766193041860,-164.38,0.0001644,2]
[399233929,1766193041869,-900.0,0.00016452,2]
[399233930,1766193041879,-663.93287602,0.00016517,2]
[399233931,1766193041888,-12356.45414594,0.0001666,2]
[399233932,1766193041898,-1046.66744241,0.000167,2]
[399233933,1766193041907,-167.82,0.00016712,2]
[399233934,1766193041916,-500.0,0.00016846,2]
[399233935,1766193041925,-500.0,0.00016846,2]
[399233936,1766193041934,-1000.0,0.00016848,2]
[399233937,1766193041944,-1000.0,0.00016848,2]
[399233938,1766193041953,-1000.0,0.00016848,2]
[399233939,1766193041962,-221.05854502,0.00016848,2]
[399233940,1766193041971,-1000.0,0.00016848,2]
[399233941,1766193041981,-1000.0,0.00016848,2]
[399233942,1766193041990,-1000.0,0.00016848,2]
[399233943,1766193041999,-1000.0,0.00016848,2]
[399233944,1766193042009,-1000.0,0.00016848,2]
[399233945,1766193042018,-1000.0,0.00016848,2]
[399233946,1766193042027,-1000.0,0.00016848,2]
[399233947,1766193042036,-1000.0,0.00016848,2]
[399233948,1766193042045,-1000.0,0.00016848,2]
[399233949,1766193042053,-1000.0,0.00016848,2]
[399233950,1766193042062,-500.0,0.00016848,2]
[399233951,1766193042071,-1000.0,0.00016848,2]
[399233952,1766193042080,-178.93750453,0.00016848,2]
[399233953,1766193042088,-1000.0,0.00016848,2]
[399233954,1766193042097,-1000.0,0.00016848,2]
[399233955,1766193042107,-1000.0,0.00016848,2]
[399233956,1766193042118,-1000.0,0.00016848,2]
[399233957,1766193042126,-1000.0,0.00016848,2]
[399233958,1766193042135,-1000.0,0.00016848,2]
[399233959,1766193042147,-500.0,0.00016848,2]
[399233960,1766193042155,-1000.0,0.00016848,2]
[399233961,1766193042164,-1000.0,0.00016848,2]
[399233962,1766193042174,-1000.97583461,0.00016848,2]
[399233963,1766193042184,-998.08794248,0.00016848,2]
[399233964,1766193042193,-1000.0,0.00016848,2]
[399233965,1766193042202,-1000.0,0.00016848,2]
[399233966,1766193042211,-1000.0,0.00016848,2]
[399233967,1766193042220,-1000.0,0.00016848,2]
[399233968,1766193042229,-1000.0,0.00016848,2]
[399233969,1766193042238,-1000.0,0.00016848,2]
[399233970,1766193042247,-1000.0,0.00016848,2]
[399233971,1766193042256,-1000.0,0.00016848,2]
[399233972,1766193042265,-1000.0,0.00016848,2]
[399233973,1766193042275,-500.0,0.00016848,2]
[399233974,1766193042284,-1000.0,0.00016848,2]
[399233975,1766193042293,-1004.05376644,0.00016848,2]
[399233976,1766193042301,-200.0,0.00016863,2]
[399233977,1766193042310,-200.0,0.00016864,2]
[399233978,1766193042319,-500.0,0.00016899,2]
[399233979,1766193042328,-170.42543266,0.000169,2]
[399233980,1766193042337,-2016.28938285,0.000169,2]
[399233981,1766193042345,-795.27488707,0.000169,2]
[399233982,1766193042354,-210.53354525,0.000169,2]
[399233983,1766193042365,-337.21037038,0.000169,2]
[399233984,1766193042375,-273.47417168,0.000169,2]
[399233985,1766193042384,-176.24229852,0.000169,2]
[399233986,1766193042395,-204.12477943,0.00016929,2]
[399233987,1766193042405,-500.0,0.00016932,2]
[399233988,1766193042414,-170.0,0.00016935,2]
[399233989,1766193042423,-500.0,0.00016986,2]
[399233990,1766193042433,-448.37833053,0.00016986,2]
[399233991,1766193042443,-500.0,0.00016986,2]
[399233992,1766193042452,-201.83,0.00016986,2]
[399233993,1766193042461,-150.0,0.00016986,2]
[399233994,1766193042471,-278.0,0.00016989,2]
[399233995,1766193042481,-385.16856536,0.0001699,2]
[399233996,1766193042490,-385.16856536,0.0001699,2]
[399233997,1766193042499,-151.0,0.00016997,2]
[399233998,1766193042508,-1018.23651842,0.00016999,5]
[399234000,1766193042517,-1018.23651842,0.00016999,5]
[399234002,1766193042526,-1018.23651842,0.00016999,5]
[399234004,1766193042536,-1018.23651842,0.00016999,5]
[399234006,1766193042545,-1018.23651842,0.00016999,5]
[399234007,1766193042554,-1018.2365184,0.00016999,5]
[399234008,1766193042562,-500.0,0.00016999,2]
[399234009,1766193042571,-500.0,0.00016999,2]
[399234010,1766193042580,-500.0,0.00016999,2]
[399234011,1766193042589,-500.0,0.00016999,2]
[399234012,1766193042598,-500.0,0.00016999,2]
[399234013,1766193042607,-242.46,0.00016999,2]
[399234014,1766193042616,-500.0,0.00016999,2]
[399234015,1766193042625,-500.0,0.00016999,2]
[399234016,1766193042633,-344.13005427,0.00016999,2]
[399234017,1766193042643,-500.0,0.00016999,2]
[399234018,1766193042653,-500.0,0.00016999,2]
[399234019,1766193042662,-500.0,0.00016999,2]
[399234020,1766193042670,-500.0,0.00016999,2]
[399234021,1766193042681,-500.0,0.00016999,2]
[399234022,1766193042690,-500.0,0.00016999,2]
[399234023,1766193042699,-500.0,0.00016999,2]
[399234024,1766193042708,-500.0,0.00016999,2]
[399234025,1766193042717,-500.0,0.00016999,2]
[399234026,1766193042727,-500.0,0.00016999,2]
[399234027,1766193042737,-500.0,0.00016999,2]
[399234028,1766193042746,-500.0,0.00016999,2]
[399234029,1766193042755,-500.0,0.00016999,2]
[399234030,1766193042765,-500.0,0.00016999,2]
[399234032,1766193042774,-500.0,0.00016999,2]
[399234033,1766193042783,-500.0,0.00016999,2]
[399234035,1766193042792,-527.06873732,0.00016999,2]
[399234037,1766193042802,-300.0,0.00016999,2]
[399234039,1766193042811,-500.0,0.00016999,2]
[399234041,1766193042822,-500.0,0.00016999,2]
[399234042,1766193042831,-500.0,0.00016999,2]
[399234043,1766193042840,-500.0,0.00016999,2]
[399234044,1766193042849,-500.0,0.00016999,2]
[399234045,1766193042858,-500.0,0.00016999,2]
[399234046,1766193042867,-500.0,0.00016999,2]
[399234047,1766193042877,-500.0,0.00016999,2]
[399234048,1766193042886,-500.0,0.00016999,2]
[399234049,1766193042895,-500.0,0.00016999,2]
[399234050,1766193042904,-500.0,0.00016999,2]
[399234051,1766193042913,-500.0,0.00016999,2]
[399234052,1766193042922,-500.0,0.00016999,2]
[399234053,1766193042931,-10250.0,0.00017,2]
[399234054,1766193042940,-151.55,0.00017,2]
[399234055,1766193042950,-46893.60401756,0.00017,2]
[399234056,1766193043150,-1008.93843287,0.00017,2]
[399234057,1766193043169,-500.0,0.00017,2]
[399234058,1766193043182,-2364.81478464,0.00017,2]
[399234059,1766193043192,-1575.97488614,0.00017,2]
[399234060,1766193043204,-21918.08337215,0.00017,2]
[399234064,1766193043240,-168.0,0.00012922,2]
[399234065,1766193043250,-8482.23721757,0.00017,2]
[399234066,1766193043261,-8947.21879473,0.00017,2]
[399234067,1766193043272,-8943.78386462,0.00017,2]
[399234069,1766193043283,-9077.54866152,0.00017,2]
[399234070,1766193043293,-8943.84023489,0.00017,2]
[399234071,1766193043306,-588.0,0.00017,2]
[399234073,1766193044551,-1.7e-07,0.00017,2]
[399234074,1766193044599,-213.78997226,0.00015363,2]
[399234075,1766193044611,-26.43269207,0.00015363,2]
[399234076,1766193044620,-571.70100373,0.00017,2]
[399234077,1766193044630,-500.0,0.00017,2]
[399234078,1766193044642,-1049.20648709,0.00017,2]
[399234079,1766193044657,-341.2771185,0.00017,2]
[399234080,1766193044668,-1194.489,0.00017,2]
[399234081,1766193044679,-628.3168439,0.00017,2]
[399234087,1766193046942,5328.9057085,9.324e-05,2]
[399234088,1766193096711,-522.46745049,0.00010768,2]
[399234098,1766193398580,-4806.43825801,0.00010768,2]
[399234099,1766193398617,-137.13348398,0.00011001,2]
[399234100,1766193406686,-112.86651602,0.00011001,2]
[399234101,1766193406713,-250.0,0.00011307,2]
[399234102,1766193406740,-412.86335756,0.00011499,2]
[399234103,1766193406766,-155.2728128,0.00011499,2]
[399234104,1766193406793,-875.34822895,0.00011499,2]
[399234105,1766193406820,-712.104928,0.00011538,2]
[399234106,1766193406848,-1200.0,0.00011596,2]
[399234107,1766193406875,-300.0,0.00011596,2]
[399234108,1766193406906,-500.0,0.00011597,2]
[399234109,1766193406944,-463.09831334,0.00011597,2]
[399234110,1766193419454,-36.90168666,0.00011597,2]
[399234111,1766193419485,-500.0,0.00011597,2]
[399234112,1766193419516,-500.0,0.00011597,2]
[399234113,1766193419546,-500.0,0.00011597,2]
[399234114,1766193419575,-500.0,0.00011597,2]
[399234115,1766193419605,-500.0,0.00011597,2]
[399234116,1766193419636,-500.0,0.00011597,2]
[399234117,1766193419669,-500.0,0.00011597,2]
[399234118,1766193419700,-500.0,0.00011597,2]
[399234119,1766193419730,-500.0,0.00011597,2]
[399234120,1766193419760,-426.20662668,0.00011597,2]
[399234121,1766193425821,-895.63059252,0.00011519,2]
[399234122,1766193425861,-73.79337332,0.00011597,2]
[399234123,1766193425897,-500.0,0.00011597,2]
[399234124,1766193425932,-500.0,0.00011597,2]
[399234125,1766193425968,-500.0,0.00011597,2]
[399234126,1766193426003,-500.0,0.00011597,2]
[399234127,1766193426039,-500.0,0.00011597,2]
[399234128,1766193426075,-500.0,0.00011597,2]
[399234129,1766193426115,-500.0,0.00011597,2]
[399234130,1766193426155,-500.0,0.00011597,2]
[399234157,1766193673055,-1046.66744241,0.000114,2]
[399234158,1766193673082,-209.42728664,0.00011496,2]
[399234159,1766193673110,-244.0,0.00011496,2]
[399234160,1766193673136,-209.42728664,0.00011497,2]
[399234161,1766193673163,-209.42728664,0.00011497,2]
[399234162,1766193673190,-155.27281277,0.00011499,2]
[399234163,1766193673216,-489.41719866,0.00011499,2]
[399234164,1766193673242,-250.0,0.00011558,2]
[399234165,1766193673268,-195.0,0.00011568,2]
[399234166,1766193673307,-195.0,0.00011577,2]
[399234167,1766193673337,-195.0,0.0001159,2]
[399234168,1766193673364,-300.0,0.00011595,2]
[399234169,1766193673390,-300.0,0.00011595,2]
[399234170,1766193673417,-300.0,0.00011595,2]
[399234171,1766193673443,-151.0,0.00011596,2]
[399234172,1766193673470,-500.0,0.00011596,2]
[399234173,1766193673672,-500.0,0.00011596,2]
[399234174,1766193673698,-500.0,0.00011596,2]
[399234175,1766193673724,-500.0,0.00011596,2]
[399234176,1766193673750,-500.0,0.00011596,2]
[399234177,1766193673776,-500.0,0.00011596,2]
[399234178,1766193673803,-500.0,0.00011596,2]
[399234179,1766193673830,-500.0,0.00011596,2]
[399234180,1766193673856,-500.0,0.00011596,2]
[399234181,1766193673883,-500.0,0.00011596,2]
[399234182,1766193673909,-500.0,0.00011596,2]
[399234183,1766193673997,-273.39288583,0.00011596,2]
[399234184,1766193674024,-500.0,0.00011596,2]
[399234185,1766193674051,-500.0,0.00011596,2]
[399234186,1766193674079,-500.0,0.00011596,2]
[399234187,1766193674106,-500.0,0.00011596,2]
[399234188,1766193674133,-500.0,0.00011596,2]
[399234189,1766193674160,-500.0,0.00011596,2]
[399234190,1766193674187,-500.0,0.00011596,2]
[399234191,1766193674214,-500.0,0.00011596,2]
[399234192,1766193674240,-500.0,0.00011596,2]
[399234193,1766193679702,-151.0,0.00011596,2]
[399234194,1766193679730,-500.0,0.00011596,2]
[399234195,1766193679760,-500.0,0.00011596,2]
[399234196,1766193679788,-528.0,0.00011596,2]
[399234197,1766193679817,-1137.86,0.00011596,2]
[399234198,1766193679845,-214.05888815,0.00011598,2]
[399234199,1766193684246,899.6101652,0.00011598,2]
[399234200,1766193684290,899.6101652,0.00011598,2]
[399234201,1766193684334,899.6101652,0.00011598,2]
[399234202,1766193684375,899.6101652,0.00011598,2]
[399234203,1766193684418,339.7315629,0.00011598,2]
[399234204,1766193684444,559.8786023,0.00011598,2]
[399234205,1766193684484,899.6101652,0.00011598,2]
[399234206,1766193684524,899.6101652,0.00011598,2]
[399234207,1766193684563,899.6101652,0.00011598,2]
[399234208,1766193684601,899.6101652,0.00011598,2]
[399234209,1766193684640,899.6101652,0.00011598,2]
[399234210,1766193684682,899.6101652,0.00011598,2]
[399234211,1766193684720,899.6101652,0.00011598,2]
[399234212,1766193684757,899.6101652,0.00011598,2]
[399234213,1766193684795,899.6101652,0.00011598,2]
[399234214,1766193684834,899.6101652,0.00011598,2]
[399234215,1766193684879,444.0297457,0.00011598,2]
[399234216,1766193687727,-455.5804195,0.00011598,2]
[399234217,1766193687757,-899.6101652,0.00011598,2]
[399234218,1766193687787,-899.6101652,0.00011598,2]
[399234219,1766193687817,-899.6101652,0.00011598,2]
[399234220,1766193687848,-899.6101652,0.00011598,2]
[399234221,1766193687878,-899.6101652,0.00011598,2]
[399234222,1766193715074,-2831.586,0.00011367,2]
[399234223,1766193715104,-174.048,0.00011367,2]
[399234224,1766193715134,-170.42543266,0.00011499,2]
[399234225,1766193715167,-899.6101652,0.00011598,2]
[399234226,1766193715199,-899.6101652,0.00011598,2]
[399234227,1766193715348,-899.6101652,0.00011598,2]
[399234228,1766193715382,-899.6101652,0.00011598,2]
[399234229,1766193715413,-899.6101652,0.00011598,2]
[399234230,1766193715445,-899.6101652,0.00011598,2]
[399234231,1766193715476,-899.6101652,0.00011598,2]
[399234232,1766193715506,-104.2981828,0.00011598,2]
[399234233,1766193715896,-795.3119824,0.00011598,2]
[399234234,1766193715930,-899.6101652,0.00011598,2]
[399234235,1766193715963,-899.6101652,0.00011598,2]
[399234236,1766193715994,-899.6101652,0.00011598,2]
[399234237,1766193716026,-899.6101652,0.00011598,2]
[399234238,1766193716062,-312.8945484,0.00011598,2]
[399234239,1766193721766,-586.7156168,0.00011598,2]
[399234240,1766193721799,-899.6101652,0.00011598,2]
[399234241,1766193721830,-899.6101652,0.00011598,2]
[399234242,1766193721863,-899.6101652,0.00011598,2]
[399234243,1766193721895,-899.6101652,0.00011598,2]
[399234244,1766193721927,-730.0872796,0.00011598,2]
[399234245,1766193722063,-169.5228856,0.00011598,2]
[399234246,1766193722095,-899.6101652,0.00011598,2]
[399234247,1766193722128,-899.6101652,0.00011598,2]
[399234248,1766193722162,-899.6101652,0.00011598,2]
[399234249,1766193722195,-899.6101652,0.00011598,2]
[399234250,1766193722230,-899.6101652,0.00011598,2]
[399234251,1766193729943,-899.6101652,0.00011598,2]
[399234252,1766193729980,-899.6101652,0.00011598,2]
[399234253,1766193730012,-899.6101652,0.00011598,2]
[399234254,1766193730050,-899.6101652,0.00011598,2]
[399234255,1766193730084,-899.6101652,0.00011598,2]
[399234256,1766193730118,-104.2981828,0.00011598,2]
[399234257,1766193730326,-795.3119824,0.00011598,2]
[399234258,1766193730360,-899.6101652,0.00011598,2]
[399234259,1766193730406,-899.6101652,0.00011598,2]
[399234260,1766193730448,-899.6101652,0.00011598,2]
[399234261,1766193730484,-975.48090202,0.00011598,2]
[399234262,1766193730520,-85.28233794,0.00011598,2]
[399234265,1766194001743,-250.48376776,0.00011399,2]
[399234266,1766194001771,-300.0,0.00011498,2]
[399234267,1766194001800,-1200.0,0.00011498,2]
[399234268,1766194001828,-300.0,0.00011498,2]
[399234269,1766194001856,-300.0,0.00011498,2]
[399234270,1766194001884,-1000.0,0.00011498,2]
[399234271,1766194001912,-458.89353774,0.00011499,2]
[399234272,1766194015226,-2381.255389,0.00011499,2]
[399234273,1766194015256,-1756.08868387,0.00011499,2]
[399234275,1766194063008,-300.0,0.00011233,2]
[399234276,1766194063037,-1725.32185426,0.00011499,2]
[399234277,1766194063067,-286.19211183,0.00011499,2]
[399234278,1766194063095,-300.0,0.00011591,2]
[399234279,1766194063124,-200.0,0.00011592,2]
[399234280,1766194063154,-151.0,0.00011592,2]
[399234281,1766194063183,-151.0,0.00011592,2]
[399234282,1766194063211,-151.0,0.00011592,2]
[399234283,1766194063242,-151.0,0.00011592,2]
[399234284,1766194063270,-151.0,0.00011592,2]
[399234285,1766194063300,-151.0,0.00011592,2]
[399234286,1766194063327,-150.0,0.00011594,2]
[399234287,1766194063354,-500.0,0.00011595,2]
[399234288,1766194063381,-500.0,0.00011595,2]
[399234289,1766194071784,-151.0,0.00011592,2]
[399234290,1766194071814,-151.0,0.00011592,2]
[399234291,1766194071842,-151.0,0.00011592,2]
[399234292,1766194071872,-151.0,0.00011592,2]
[399234293,1766194071902,-151.0,0.00011592,2]
[399234294,1766194071930,-500.0,0.00011595,2]
[399234295,1766194071964,-500.0,0.00011595,2]
[399234296,1766194071994,-252.59920954,0.00011595,2]
[399234297,1766194072029,-500.0,0.00011595,2]
[399234298,1766194072062,-500.0,0.00011595,2]
[399234299,1766194072096,-500.0,0.00011595,2]
[399234300,1766194072131,-500.0,0.00011595,2]
[399234301,1766194072165,-500.0,0.00011595,2]
[399234302,1766194072198,-484.81158092,0.00011595,2]
[399234304,1766194098470,-326.27813244,0.00011499,2]
[399234305,1766194098507,-300.0,0.00011594,2]
[399234306,1766194098539,-1200.0,0.00011594,2]
[399234307,1766194098571,-250.0,0.00011594,2]
[399234308,1766194098607,-15.18841908,0.00011595,2]
[399234309,1766194098642,-250.0,0.00011595,2]
[399234310,1766194098678,-500.0,0.00011595,2]
[399234311,1766194098713,-500.0,0.00011595,2]
[399234312,1766194098747,-500.0,0.00011595,2]
[399234313,1766194098781,-500.0,0.00011595,2]
[399234314,1766194098815,-500.0,0.00011595,2]
[399234315,1766194104927,-500.0,0.00011595,2]
[399234316,1766194104960,-500.0,0.00011595,2]
[399234317,1766194104993,-500.0,0.00011595,2]
[399234318,1766194105025,-500.0,0.00011595,2]
[399234319,1766194105057,-500.0,0.00011595,2]
[399234320,1766194105088,-500.0,0.00011595,2]
[399234321,1766194105120,-500.0,0.00011595,2]
[399234322,1766194105152,-500.0,0.00011595,2]
[399234323,1766194105184,-500.0,0.00011595,2]
[399234324,1766194105216,-500.0,0.00011595,2]
[399234326,1766194115167,-500.0,0.00011595,2]
[399234327,1766194115193,-500.0,0.00011595,2]
[399234328,1766194115231,-500.0,0.00011595,2]
[399234329,1766194115258,-500.0,0.00011595,2]
[399234330,1766194115285,-500.0,0.00011595,2]
[399234331,1766194115311,-500.0,0.00011595,2]
[399234332,1766194168513,-5950.23336503,0.00011499,2]
[399234333,1766194168536,-390.11964738,0.00011547,2]
[399234334,1766194168561,-500.0,0.00011595,2]
[399234335,1766194168585,-500.0,0.00011595,2]
[399234336,1766194168611,-500.0,0.00011595,2]
[399234337,1766194168638,-500.0,0.00011595,2]
[399234338,1766194168661,-500.0,0.00011595,2]
[399234339,1766194168685,-500.0,0.00011595,2]
[399234340,1766194168710,-500.0,0.00011595,2]
[399234341,1766194168735,-500.0,0.00011595,2]
[399234342,1766194168759,-500.0,0.00011595,2]
[399234343,1766194168781,-500.0,0.00011595,2]
[399234344,1766194168804,-500.0,0.00011595,2]
[399234345,1766194168827,-500.0,0.00011595,2]
[399234346,1766194168852,-500.0,0.00011595,2]
[399234347,1766194168880,-500.0,0.00011595,2]
[399234348,1766194168905,-500.0,0.00011595,2]
[399234349,1766194168930,-500.0,0.00011595,2]
[399234350,1766194168952,-500.0,0.00011595,2]
[399234351,1766194168976,-500.0,0.00011595,2]
[399234352,1766194169002,-500.0,0.00011595,2]
[399234353,1766194169027,-500.0,0.00011595,2]
[399234354,1766194169052,-500.0,0.00011595,2]
[399234355,1766194169078,-500.0,0.00011595,2]
[399234356,1766194169106,-500.0,0.00011595,2]
[399234357,1766194169129,-500.0,0.00011595,2]
[399234358,1766194169152,-500.0,0.00011595,2]
[399234359,1766194169175,-500.0,0.00011595,2]
[399234360,1766194169198,-500.0,0.00011595,2]
[399234361,1766194169224,-159.64698759,0.00011595,2]
[399234364,1766194218602,-428.37323917,0.00011495,2]
[399234365,1766194218626,-244.0,0.00011495,2]
[399234366,1766194218653,-428.37323917,0.00011497,2]
[399234367,1766194218676,-428.37323917,0.00011499,2]
[399234368,1766194218705,-195.0,0.00011596,2]
[399234369,1766194218731,-181.57800946,0.00011598,2]
[399234370,1766194218755,-300.0,0.00011598,2]
[399234371,1766194218780,-150.0,0.00011598,2]
[399234372,1766194218808,-1644.30227303,0.00011599,2]